[Event "*** SCC Grand Prix: Titled Tuesday Blitz"]
[Site "Chess.com"]
[Date "2020.07.14"]
[Round "9"]
[White "TST2014"]
[Black "ARTHURMOTIVATOR"]
[Result "1-0"]
[WhiteElo "2492"]
[BlackElo "2342"]
[TimeControl "180+1"]
[EndTime "11:47:54 PDT"]
[Termination "TST2014 won on time"]

1. d4 {[%clk 0:03:00.9]} 1... Nf6 {[%clk 0:02:58.9]} 2. c4 {[%clk 0:03:00.6]}
2... c5 {[%clk 0:02:51.3]} 3. d5 {[%clk 0:03:00.5]} 3... g6 {[%clk 0:02:50.2]}
4. Nc3 {[%clk 0:03:00]} 4... Bg7 {[%clk 0:02:49.2]} 5. e4 {[%clk 0:03:00.2]}
5... d6 {[%clk 0:02:48.5]} 6. h3 {[%clk 0:02:58.5]} 6... O-O {[%clk 0:02:48.4]}
7. Nf3 {[%clk 0:02:58.7]} 7... e6 {[%clk 0:02:48.5]} 8. Bd3 {[%clk 0:02:59]}
8... Na6 {[%clk 0:02:48.6]} 9. O-O {[%clk 0:02:58.1]} 9... e5 {[%clk 0:02:48.8]}
10. Bg5 {[%clk 0:02:54.4]} 10... h6 {[%clk 0:02:49]} 11. Be3 {[%clk 0:02:53.9]}
11... Nh7 {[%clk 0:02:48.1]} 12. Qc1 {[%clk 0:02:50.2]} 12... f5 {[%clk
0:02:47.1]} 13. Bxh6 {[%clk 0:02:49.5]} 13... f4 {[%clk 0:02:47]} 14. Bxg7
{[%clk 0:02:48.9]} 14... Kxg7 {[%clk 0:02:47.4]} 15. a3 {[%clk 0:02:47.7]} 15...
Ng5 {[%clk 0:02:45.6]} 16. Be2 {[%clk 0:02:33]} 16... Nxf3+ {[%clk 0:02:19.1]}
17. Bxf3 {[%clk 0:02:31.4]} 17... Qg5 {[%clk 0:02:19.3]} 18. Kh2 {[%clk
0:02:27.2]} 18... Rh8 {[%clk 0:02:19.1]} 19. Rh1 {[%clk 0:02:08.9]} 19... Bxh3
{[%clk 0:01:38.1]} 20. Kg1 {[%clk 0:01:58.3]} 20... Bg4 {[%clk 0:01:07.6]} 21.
Rxh8 {[%clk 0:01:36.4]} 21... Rxh8 {[%clk 0:00:51.9]} 22. Qd1 {[%clk 0:01:31.8]}
22... Qh4 {[%clk 0:00:42.3]} 23. Kf1 {[%clk 0:01:27.1]} 23... Qh1+ {[%clk
0:00:41.5]} 24. Ke2 {[%clk 0:01:26.8]} 24... Qxg2 {[%clk 0:00:41.1]} 25. Bxg4
{[%clk 0:01:22.7]} 25... Qxg4+ {[%clk 0:00:40.6]} 26. Kd2 {[%clk 0:01:22.7]}
26... Qxd1+ {[%clk 0:00:38.1]} 27. Rxd1 {[%clk 0:01:22.1]} 27... Nc7 {[%clk
0:00:38.3]} 28. b4 {[%clk 0:01:21.1]} 28... b6 {[%clk 0:00:33.1]} 29. bxc5
{[%clk 0:01:20.5]} 29... dxc5 {[%clk 0:00:32.7]} 30. a4 {[%clk 0:01:20.7]} 30...
Rh2 {[%clk 0:00:31.2]} 31. Ke2 {[%clk 0:01:20]} 31... g5 {[%clk 0:00:30.4]} 32.
a5 {[%clk 0:01:18.5]} 32... g4 {[%clk 0:00:26.6]} 33. axb6 {[%clk 0:01:16.3]}
33... axb6 {[%clk 0:00:25.9]} 34. Rg1 {[%clk 0:01:14.7]} 34... g3 {[%clk
0:00:24.6]} 35. Nd1 {[%clk 0:01:14.3]} 35... Kf6 {[%clk 0:00:20.7]} 36. Kf3
{[%clk 0:01:13.2]} 36... g2 {[%clk 0:00:14.4]} 37. Rxg2 {[%clk 0:01:10.3]} 37...
Rh3+ {[%clk 0:00:13.3]} 38. Kg4 {[%clk 0:01:09.9]} 38... Rd3 {[%clk 0:00:13.1]}
39. Nb2 {[%clk 0:01:05.6]} 39... Rd2 {[%clk 0:00:11.7]} 40. Na4 {[%clk
0:01:05.6]} 40... b5 {[%clk 0:00:07.5]} 41. Nxc5 {[%clk 0:01:02]} 41... bxc4
{[%clk 0:00:07]} 42. Nd7+ {[%clk 0:01:02.2]} 42... Ke7 {[%clk 0:00:06.4]} 43.
Nxe5 {[%clk 0:01:02.8]} 43... c3 {[%clk 0:00:06.8]} 44. Rg1 {[%clk 0:00:54]}
44... c2 {[%clk 0:00:06.7]} 45. Rc1 {[%clk 0:00:54]} 45... Nb5 {[%clk
0:00:05.8]} 46. Ng6+ {[%clk 0:00:52.2]} 46... Kf6 {[%clk 0:00:04.8]} 47. Nxf4
{[%clk 0:00:52.5]} 47... Nd4 {[%clk 0:00:04.4]} 48. d6 {[%clk 0:00:26.1]} 48...
Rd1 {[%clk 0:00:03.8]} 49. e5+ {[%clk 0:00:23.7]} 49... Kxe5 {[%clk 0:00:01.7]}
50. d7 {[%clk 0:00:23.6]} 50... Rxc1 {[%clk 0:00:01.7]} 51. d8=Q {[%clk
0:00:22.5]} 51... Rg1+ {[%clk 0:00:01.8]} 52. Kh5 {[%clk 0:00:21.2]} 52... c1=Q
{[%clk 0:00:01.4]} 53. Nd3+ {[%clk 0:00:21.2]} 1-0

[Event "*** SCC Grand Prix: Titled Tuesday Blitz"]
[Site "Chess.com"]
[Date "2020.07.14"]
[Round "9"]
[White "benko_008"]
[Black "korkmaz16"]
[Result "1-0"]
[WhiteElo "2439"]
[BlackElo "2320"]
[TimeControl "180+1"]
[EndTime "11:47:54 PDT"]
[Termination "benko_008 won by resignation"]

1. Nf3 {[%clk 0:03:00.9]} 1... d5 {[%clk 0:02:59.2]} 2. g3 {[%clk 0:03:01]} 2...
Nf6 {[%clk 0:02:58.7]} 3. Bg2 {[%clk 0:03:01.2]} 3... g6 {[%clk 0:02:58.5]} 4.
b3 {[%clk 0:03:00.3]} 4... Bg7 {[%clk 0:02:58.5]} 5. Bb2 {[%clk 0:03:00.9]} 5...
O-O {[%clk 0:02:58.7]} 6. O-O {[%clk 0:03:00.4]} 6... c5 {[%clk 0:02:50.7]} 7.
e3 {[%clk 0:02:52.6]} 7... Nc6 {[%clk 0:02:44.1]} 8. Ne5 {[%clk 0:02:50.8]} 8...
Qc7 {[%clk 0:02:29.8]} 9. Nxc6 {[%clk 0:02:49.1]} 9... bxc6 {[%clk 0:02:27.7]}
10. d3 {[%clk 0:02:22.3]} 10... e5 {[%clk 0:02:22.4]} 11. Nd2 {[%clk 0:02:20.4]}
11... Re8 {[%clk 0:02:21.5]} 12. c4 {[%clk 0:02:13.7]} 12... Bf5 {[%clk
0:01:59.6]} 13. Qc2 {[%clk 0:01:57.7]} 13... Rad8 {[%clk 0:01:57.9]} 14. cxd5
{[%clk 0:01:51.9]} 14... cxd5 {[%clk 0:01:55.2]} 15. e4 {[%clk 0:01:44.4]} 15...
dxe4 {[%clk 0:01:45.9]} 16. dxe4 {[%clk 0:01:40.6]} 16... Bg4 {[%clk 0:01:45.5]}
17. Nc4 {[%clk 0:01:32.1]} 17... Nd7 {[%clk 0:01:35.3]} 18. h3 {[%clk
0:01:28.6]} 18... Be6 {[%clk 0:01:34.8]} 19. Rfd1 {[%clk 0:01:28.5]} 19... Nb8
{[%clk 0:01:32.9]} 20. Bf1 {[%clk 0:01:21.4]} 20... Nc6 {[%clk 0:01:31.9]} 21.
Rxd8 {[%clk 0:00:55.1]} 21... Rxd8 {[%clk 0:01:31.3]} 22. Qc3 {[%clk 0:00:55.5]}
22... Nd4 {[%clk 0:01:31.1]} 23. Kh2 {[%clk 0:00:53.6]} 23... f5 {[%clk
0:01:26.7]} 24. exf5 {[%clk 0:00:50.5]} 24... gxf5 {[%clk 0:01:21.9]} 25. Qa5
{[%clk 0:00:45.8]} 25... Qc8 {[%clk 0:01:15.5]} 26. Bg2 {[%clk 0:00:42]} 26...
Bxc4 {[%clk 0:00:44.1]} 27. bxc4 {[%clk 0:00:42.9]} 27... e4 {[%clk 0:00:44]}
28. Rd1 {[%clk 0:00:41.2]} 28... Rd7 {[%clk 0:00:40.6]} 29. Ba3 {[%clk
0:00:38.4]} 29... Bf8 {[%clk 0:00:36.9]} 30. Rb1 {[%clk 0:00:29.1]} 30... Nc6
{[%clk 0:00:21.5]} 31. Qa4 {[%clk 0:00:27.2]} 31... Rd2 {[%clk 0:00:19.4]} 32.
Rb2 {[%clk 0:00:25.9]} 32... Rxb2 {[%clk 0:00:17.1]} 33. Bxb2 {[%clk 0:00:26.8]}
33... Qb7 {[%clk 0:00:17.6]} 34. Qc2 {[%clk 0:00:23.2]} 34... Nd4 {[%clk
0:00:17.7]} 35. Qd2 {[%clk 0:00:21.6]} 35... Qd7 {[%clk 0:00:16.6]} 36. Qf4
{[%clk 0:00:19.4]} 36... Bg7 {[%clk 0:00:16]} 37. Ba3 {[%clk 0:00:19.5]} 37...
h6 {[%clk 0:00:13.9]} 38. g4 {[%clk 0:00:18.8]} 38... fxg4 {[%clk 0:00:13.4]}
39. hxg4 {[%clk 0:00:19.1]} 39... Nc6 {[%clk 0:00:13]} 40. Qf5 {[%clk
0:00:15.5]} 40... Be5+ {[%clk 0:00:13.9]} 41. Kh3 {[%clk 0:00:14.7]} 41... Qxf5
{[%clk 0:00:14.8]} 42. gxf5 {[%clk 0:00:15]} 42... Bd4 {[%clk 0:00:14.7]} 43.
Bxe4 {[%clk 0:00:15]} 43... Ne5 {[%clk 0:00:15.6]} 44. Bd5+ {[%clk 0:00:15.2]}
44... Kg7 {[%clk 0:00:16.5]} 45. f4 {[%clk 0:00:15.7]} 45... Kf6 {[%clk
0:00:17.4]} 46. fxe5+ {[%clk 0:00:14.9]} 46... Kxe5 {[%clk 0:00:18]} 47. Bc1
{[%clk 0:00:15.4]} 47... Kxf5 {[%clk 0:00:18.9]} 48. Bxh6 {[%clk 0:00:15.3]}
48... Ke5 {[%clk 0:00:19.8]} 49. Bg7+ {[%clk 0:00:15.4]} 49... Kd6 {[%clk
0:00:19.3]} 50. Bxd4 {[%clk 0:00:15.7]} 50... cxd4 {[%clk 0:00:20.2]} 51. Kg3
{[%clk 0:00:16.2]} 51... Kc5 {[%clk 0:00:21.1]} 52. Kf3 {[%clk 0:00:16.6]} 52...
d3 {[%clk 0:00:22]} 53. Ke3 {[%clk 0:00:16.7]} 53... Kb4 {[%clk 0:00:22.9]} 54.
Kxd3 {[%clk 0:00:17.1]} 54... Ka3 {[%clk 0:00:23.8]} 55. c5 {[%clk 0:00:16.7]}
55... Kb4 {[%clk 0:00:24.7]} 56. c6 {[%clk 0:00:17.6]} 56... Kc5 {[%clk
0:00:25.6]} 57. c7 {[%clk 0:00:18.5]} 57... Kd6 {[%clk 0:00:26.4]} 58. c8=Q
{[%clk 0:00:19.4]} 1-0

[Event "*** SCC Grand Prix: Titled Tuesday Blitz"]
[Site "Chess.com"]
[Date "2020.07.14"]
[Round "9"]
[White "Biranidun"]
[Black "Konavets"]
[Result "1-0"]
[WhiteElo "2886"]
[BlackElo "3037"]
[TimeControl "180+1"]
[EndTime "11:47:55 PDT"]
[Termination "Biranidun won by resignation"]

1. e4 {[%clk 0:03:00.9]} 1... c6 {[%clk 0:03:00.1]} 2. d4 {[%clk 0:03:00.7]}
2... d5 {[%clk 0:03:00.5]} 3. e5 {[%clk 0:03:01.1]} 3... Bf5 {[%clk 0:03:00.1]}
4. Nf3 {[%clk 0:03:01.6]} 4... e6 {[%clk 0:03:00.4]} 5. Be2 {[%clk 0:03:02.1]}
5... Ne7 {[%clk 0:03:00.5]} 6. O-O {[%clk 0:03:02.3]} 6... h6 {[%clk 0:03:01]}
7. c3 {[%clk 0:03:01.9]} 7... Nd7 {[%clk 0:03:01.2]} 8. Nbd2 {[%clk 0:03:00.8]}
8... g5 {[%clk 0:03:01.4]} 9. Re1 {[%clk 0:02:59.3]} 9... Bg7 {[%clk 0:03:01.3]}
10. Nf1 {[%clk 0:02:57.9]} 10... Qc7 {[%clk 0:03:01.4]} 11. a4 {[%clk
0:02:55.2]} 11... O-O-O {[%clk 0:02:59.9]} 12. a5 {[%clk 0:02:51.5]} 12... f6
{[%clk 0:02:53]} 13. exf6 {[%clk 0:02:39.6]} 13... Nxf6 {[%clk 0:02:53.9]} 14.
Ng3 {[%clk 0:02:38.3]} 14... Ne4 {[%clk 0:02:52.4]} 15. a6 {[%clk 0:02:32.8]}
15... b6 {[%clk 0:02:50]} 16. Bd3 {[%clk 0:02:32.7]} 16... Nxg3 {[%clk 0:02:40]}
17. hxg3 {[%clk 0:02:33.6]} 17... Ng6 {[%clk 0:02:09.8]} 18. g4 {[%clk 0:01:49]}
18... Bxd3 {[%clk 0:02:09.3]} 19. Qxd3 {[%clk 0:01:49.9]} 19... Qf7 {[%clk
0:02:09.6]} 20. Bd2 {[%clk 0:01:25.4]} 20... Rhf8 {[%clk 0:02:04.9]} 21. Re2
{[%clk 0:01:25.6]} 21... Rde8 {[%clk 0:00:43.6]} 22. Rae1 {[%clk 0:01:25.1]}
22... Kb8 {[%clk 0:00:36.2]} 23. c4 {[%clk 0:01:21.7]} 23... Nh4 {[%clk
0:00:12.8]} 24. Nxh4 {[%clk 0:01:18.6]} 24... gxh4 {[%clk 0:00:13.7]} 25. cxd5
{[%clk 0:01:09]} 25... cxd5 {[%clk 0:00:14.6]} 26. Bc3 {[%clk 0:00:40.2]} 26...
Rg8 {[%clk 0:00:13.2]} 27. Qh3 {[%clk 0:00:35.3]} 27... Bf6 {[%clk 0:00:12.5]}
28. g5 {[%clk 0:00:22.6]} 28... hxg5 {[%clk 0:00:12.1]} 29. Rxe6 {[%clk
0:00:23]} 29... g4 {[%clk 0:00:09.6]} 30. Rxe8+ {[%clk 0:00:21.5]} 30... Rxe8
{[%clk 0:00:10.2]} 31. Rxe8+ {[%clk 0:00:21.8]} 31... Qxe8 {[%clk 0:00:10.7]}
32. Qxg4 {[%clk 0:00:22.3]} 32... Qe7 {[%clk 0:00:06.4]} 33. Qg8+ {[%clk
0:00:18.4]} 33... Kc7 {[%clk 0:00:06.2]} 34. Qxd5 {[%clk 0:00:18.3]} 34... Qd7
{[%clk 0:00:03.9]} 35. Qb7+ {[%clk 0:00:17.7]} 35... Kd8 {[%clk 0:00:04.2]} 36.
Qxd7+ {[%clk 0:00:15.5]} 36... Kxd7 {[%clk 0:00:04.7]} 37. Kh2 {[%clk
0:00:15.9]} 37... Kd6 {[%clk 0:00:04.7]} 38. Kh3 {[%clk 0:00:16.4]} 38... Kd5
{[%clk 0:00:05.3]} 39. Kg4 {[%clk 0:00:14.9]} 39... b5 {[%clk 0:00:05.8]} 40. f3
{[%clk 0:00:14.2]} 40... Be7 {[%clk 0:00:05.8]} 41. b3 {[%clk 0:00:12]} 41... b4
{[%clk 0:00:04.4]} 42. Be1 {[%clk 0:00:10.7]} 42... Bf6 {[%clk 0:00:04.2]} 43.
Bxh4 {[%clk 0:00:10.3]} 43... Bxd4 {[%clk 0:00:04.8]} 44. Be1 {[%clk 0:00:09.4]}
44... Bc5 {[%clk 0:00:02.5]} 45. Kf5 {[%clk 0:00:08]} 45... Be7 {[%clk
0:00:02.7]} 46. Bf2 {[%clk 0:00:07.3]} 46... Kc6 {[%clk 0:00:03.2]} 47. Bxa7
{[%clk 0:00:07.3]} 47... Kb5 {[%clk 0:00:03.8]} 48. Ke6 {[%clk 0:00:07.2]} 48...
Bh4 {[%clk 0:00:03.4]} 49. Bd4 {[%clk 0:00:06.6]} 49... Kxa6 {[%clk 0:00:03.8]}
50. Kd5 {[%clk 0:00:07.1]} 50... Kb5 {[%clk 0:00:03.4]} 51. f4 {[%clk
0:00:07.6]} 51... Ka6 {[%clk 0:00:02.8]} 52. f5 {[%clk 0:00:08]} 52... Kb7
{[%clk 0:00:03.5]} 53. f6 {[%clk 0:00:08.5]} 53... Kc7 {[%clk 0:00:04.1]} 54.
Ke6 {[%clk 0:00:08]} 54... Kc6 {[%clk 0:00:03.9]} 55. f7 {[%clk 0:00:08.3]} 1-0

[Event "*** SCC Grand Prix: Titled Tuesday Blitz"]
[Site "Chess.com"]
[Date "2020.07.14"]
[Round "9"]
[White "carlesdc96"]
[Black "Shield12"]
[Result "0-1"]
[WhiteElo "2721"]
[BlackElo "2861"]
[TimeControl "180+1"]
[EndTime "11:47:56 PDT"]
[Termination "Shield12 won by checkmate"]

1. Nf3 {[%clk 0:03:00.9]} 1... c5 {[%clk 0:03:00.1]} 2. g3 {[%clk 0:02:58.9]}
2... g6 {[%clk 0:03:00.1]} 3. Bg2 {[%clk 0:02:58.9]} 3... Bg7 {[%clk 0:03:00.8]}
4. O-O {[%clk 0:02:59]} 4... Nc6 {[%clk 0:03:01.4]} 5. c4 {[%clk 0:02:56.7]}
5... Nf6 {[%clk 0:03:01.1]} 6. Nc3 {[%clk 0:02:56.2]} 6... d5 {[%clk 0:03:01.5]}
7. cxd5 {[%clk 0:02:55.7]} 7... Nxd5 {[%clk 0:03:01.1]} 8. d3 {[%clk 0:02:47.3]}
8... O-O {[%clk 0:02:58.4]} 9. Bd2 {[%clk 0:02:46.5]} 9... Nc7 {[%clk
0:02:55.4]} 10. Rc1 {[%clk 0:02:45.7]} 10... b6 {[%clk 0:02:54.5]} 11. a3 {[%clk
0:02:44.3]} 11... Bb7 {[%clk 0:02:53.5]} 12. Qa4 {[%clk 0:02:40.6]} 12... a5
{[%clk 0:02:41.2]} 13. Qh4 {[%clk 0:02:22.4]} 13... e5 {[%clk 0:02:29.7]} 14.
Qxd8 {[%clk 0:02:04.5]} 14... Rfxd8 {[%clk 0:02:29.4]} 15. Ne1 {[%clk
0:01:58.6]} 15... Rab8 {[%clk 0:02:27.3]} 16. Nc2 {[%clk 0:01:54.8]} 16... Ne6
{[%clk 0:02:27]} 17. Ne3 {[%clk 0:01:50.8]} 17... Ncd4 {[%clk 0:02:26.1]} 18.
Bxb7 {[%clk 0:01:49.7]} 18... Rxb7 {[%clk 0:02:27]} 19. a4 {[%clk 0:01:44.7]}
19... f5 {[%clk 0:02:06.5]} 20. Nc4 {[%clk 0:01:44.2]} 20... Nb3 {[%clk
0:02:00.5]} 21. Rcd1 {[%clk 0:01:43.7]} 21... e4 {[%clk 0:01:49.9]} 22. Be3
{[%clk 0:01:18.1]} 22... exd3 {[%clk 0:01:42.7]} 23. Rxd3 {[%clk 0:01:17.9]}
23... Rxd3 {[%clk 0:01:42.3]} 24. exd3 {[%clk 0:01:18.8]} 24... Nbd4 {[%clk
0:01:31.4]} 25. Kg2 {[%clk 0:01:07.7]} 25... Nc6 {[%clk 0:01:28.9]} 26. Re1
{[%clk 0:00:51.3]} 26... Nb4 {[%clk 0:01:26]} 27. Bd2 {[%clk 0:00:32.6]} 27...
Nf8 {[%clk 0:01:06.5]} 28. Re8 {[%clk 0:00:11.8]} 28... Nxd3 {[%clk 0:01:04.6]}
29. Be3 {[%clk 0:00:09.8]} 29... Nxb2 {[%clk 0:01:03.2]} 30. Nxb2 {[%clk
0:00:09.5]} 30... Bxc3 {[%clk 0:01:03.3]} 31. Nc4 {[%clk 0:00:10.4]} 31... Bd4
{[%clk 0:00:41.1]} 32. Bh6 {[%clk 0:00:09.3]} 32... Bg7 {[%clk 0:00:40.9]} 33.
Bf4 {[%clk 0:00:09.1]} 33... h6 {[%clk 0:00:29]} 34. Rc8 {[%clk 0:00:06.3]}
34... g5 {[%clk 0:00:28.4]} 35. Bc7 {[%clk 0:00:04.9]} 35... Kh7 {[%clk
0:00:13.3]} 36. Nd6 {[%clk 0:00:02]} 36... Ra7 {[%clk 0:00:13.7]} 37. Bxb6
{[%clk 0:00:02.4]} 37... Rd7 {[%clk 0:00:13.7]} 38. Bxc5 {[%clk 0:00:02.6]}
38... Ne6 {[%clk 0:00:13.7]} 39. Ba3 {[%clk 0:00:02.8]} 39... Nd4 {[%clk
0:00:13.8]} 40. Nc4 {[%clk 0:00:02.9]} 40... Rb7 {[%clk 0:00:13]} 41. Nxa5
{[%clk 0:00:01.7]} 41... Ra7 {[%clk 0:00:13.5]} 42. Bc5 {[%clk 0:00:02.3]} 42...
Rxa5 {[%clk 0:00:12.8]} 43. Rc7 {[%clk 0:00:03.2]} 43... Ne6 {[%clk 0:00:12.1]}
44. Bb6 {[%clk 0:00:03.6]} 44... Rxa4 {[%clk 0:00:11.7]} 45. Re7 {[%clk
0:00:03.8]} 45... Re4 {[%clk 0:00:11.4]} 46. f3 {[%clk 0:00:03.4]} 46... Nf4+
{[%clk 0:00:11.8]} 47. gxf4 {[%clk 0:00:03.3]} 47... Rxe7 {[%clk 0:00:12.7]} 48.
fxg5 {[%clk 0:00:04.2]} 48... hxg5 {[%clk 0:00:13.6]} 49. Kf2 {[%clk 0:00:04.3]}
49... Kg6 {[%clk 0:00:13.6]} 50. Bd8 {[%clk 0:00:04.6]} 50... Re6 {[%clk
0:00:14.5]} 51. Bc7 {[%clk 0:00:04]} 51... Bd4+ {[%clk 0:00:14.8]} 52. Kg3
{[%clk 0:00:04.3]} 52... Re1 {[%clk 0:00:14.7]} 53. Kg2 {[%clk 0:00:04.3]} 53...
Rg1+ {[%clk 0:00:14.4]} 54. Kh3 {[%clk 0:00:04.8]} 54... Kh5 {[%clk 0:00:14.7]}
55. Bg3 {[%clk 0:00:04]} 55... g4+ {[%clk 0:00:15.1]} 56. fxg4+ {[%clk
0:00:04.9]} 56... fxg4# {[%clk 0:00:16]} 0-1

[Event "*** SCC Grand Prix: Titled Tuesday Blitz"]
[Site "Chess.com"]
[Date "2020.07.14"]
[Round "9"]
[White "Fischerev7"]
[Black "pastouche06"]
[Result "0-1"]
[WhiteElo "2366"]
[BlackElo "2526"]
[TimeControl "180+1"]
[EndTime "11:48:02 PDT"]
[Termination "pastouche06 won by resignation"]

1. e4 {[%clk 0:03:00.9]} 1... c6 {[%clk 0:02:59.5]} 2. d4 {[%clk 0:02:59.7]}
2... d5 {[%clk 0:02:58.9]} 3. exd5 {[%clk 0:03:00.6]} 3... cxd5 {[%clk
0:02:58.2]} 4. c4 {[%clk 0:02:59.2]} 4... Nf6 {[%clk 0:02:57.9]} 5. Nc3 {[%clk
0:02:58.3]} 5... Nc6 {[%clk 0:02:57.6]} 6. Nf3 {[%clk 0:02:57.9]} 6... Be6
{[%clk 0:02:57.2]} 7. c5 {[%clk 0:02:51.2]} 7... g6 {[%clk 0:02:50]} 8. Bb5
{[%clk 0:02:50.4]} 8... Bg7 {[%clk 0:02:45.7]} 9. Ne5 {[%clk 0:02:42.7]} 9...
Bd7 {[%clk 0:02:45.3]} 10. Bxc6 {[%clk 0:02:37.2]} 10... Bxc6 {[%clk 0:02:41.5]}
11. O-O {[%clk 0:02:35.4]} 11... O-O {[%clk 0:02:41.1]} 12. Re1 {[%clk
0:02:32.1]} 12... Nd7 {[%clk 0:02:41.1]} 13. f4 {[%clk 0:02:14.7]} 13... e6
{[%clk 0:01:46.4]} 14. b4 {[%clk 0:01:53.9]} 14... a6 {[%clk 0:01:44.8]} 15. a4
{[%clk 0:01:52.5]} 15... Nxe5 {[%clk 0:01:39.4]} 16. fxe5 {[%clk 0:01:47]} 16...
f6 {[%clk 0:01:39.7]} 17. Bf4 {[%clk 0:01:13.3]} 17... g5 {[%clk 0:01:33.2]} 18.
Bg3 {[%clk 0:01:11.1]} 18... f5 {[%clk 0:01:33.4]} 19. Qd3 {[%clk 0:00:59]}
19... f4 {[%clk 0:01:29.9]} 20. Bf2 {[%clk 0:00:58]} 20... g4 {[%clk 0:01:18.9]}
21. b5 {[%clk 0:00:50.9]} 21... Be8 {[%clk 0:01:18.1]} 22. Ne2 {[%clk
0:00:17.4]} 22... Qg5 {[%clk 0:01:09.5]} 23. bxa6 {[%clk 0:00:11]} 23... bxa6
{[%clk 0:01:09.4]} 24. Qd2 {[%clk 0:00:08.4]} 24... Bh6 {[%clk 0:00:54.6]} 25.
g3 {[%clk 0:00:06.8]} 25... f3 {[%clk 0:00:44.4]} 26. Qxg5+ {[%clk 0:00:07.7]}
26... Bxg5 {[%clk 0:00:45.3]} 27. Nc3 {[%clk 0:00:07.5]} 27... Bg6 {[%clk
0:00:43.1]} 28. Be3 {[%clk 0:00:05.9]} 28... Bxe3+ {[%clk 0:00:30.7]} 29. Rxe3
{[%clk 0:00:06.8]} 29... Rab8 {[%clk 0:00:31]} 30. Ra2 {[%clk 0:00:06.4]} 30...
Rb3 {[%clk 0:00:27.7]} 31. Kf2 {[%clk 0:00:06.2]} 31... Rfb8 {[%clk 0:00:26.7]}
32. h3 {[%clk 0:00:05.6]} 32... Rb2+ {[%clk 0:00:24.4]} 33. Rxb2 {[%clk
0:00:05.2]} 33... Rxb2+ {[%clk 0:00:25.3]} 34. Kf1 {[%clk 0:00:05.2]} 34... gxh3
{[%clk 0:00:24.3]} 35. Kg1 {[%clk 0:00:04.4]} 35... Be4 {[%clk 0:00:19.8]} 36.
Nxe4 {[%clk 0:00:03.9]} 36... dxe4 {[%clk 0:00:20.7]} 37. Rxe4 {[%clk
0:00:04.5]} 37... Rg2+ {[%clk 0:00:21]} 38. Kh1 {[%clk 0:00:04.4]} 38... f2
{[%clk 0:00:21.1]} 39. Rg4+ {[%clk 0:00:03.8]} 39... Kh8 {[%clk 0:00:16.7]} 40.
Rf4 {[%clk 0:00:04.7]} 40... Rg1+ {[%clk 0:00:16.6]} 41. Kh2 {[%clk 0:00:04.6]}
41... f1=Q {[%clk 0:00:17.4]} 42. Rxf1 {[%clk 0:00:04.8]} 42... Rxf1 {[%clk
0:00:18.3]} 43. d5 {[%clk 0:00:03.2]} 43... exd5 {[%clk 0:00:17.5]} 44. c6
{[%clk 0:00:03.6]} 44... Rc1 {[%clk 0:00:17.1]} 45. e6 {[%clk 0:00:03.9]} 45...
Rxc6 {[%clk 0:00:16.7]} 46. e7 {[%clk 0:00:04.8]} 46... Re6 {[%clk 0:00:17.6]}
0-1

[Event "*** SCC Grand Prix: Titled Tuesday Blitz"]
[Site "Chess.com"]
[Date "2020.07.14"]
[Round "9"]
[White "Zurability"]
[Black "ditkin25"]
[Result "0-1"]
[WhiteElo "2559"]
[BlackElo "2417"]
[TimeControl "180+1"]
[EndTime "11:48:04 PDT"]
[Termination "ditkin25 won by checkmate"]

1. e4 {[%clk 0:03:00.9]} 1... c6 {[%clk 0:02:59.5]} 2. d4 {[%clk 0:02:56.4]}
2... d5 {[%clk 0:03:00.4]} 3. exd5 {[%clk 0:02:55.8]} 3... cxd5 {[%clk
0:03:01.3]} 4. c4 {[%clk 0:02:56.3]} 4... Nf6 {[%clk 0:03:00.8]} 5. Nc3 {[%clk
0:02:56.5]} 5... e6 {[%clk 0:03:01.3]} 6. Nf3 {[%clk 0:02:56]} 6... Bb4 {[%clk
0:03:01.2]} 7. cxd5 {[%clk 0:02:53.5]} 7... Nxd5 {[%clk 0:03:02.1]} 8. Bd2
{[%clk 0:02:54.1]} 8... Nc6 {[%clk 0:03:01.4]} 9. Bd3 {[%clk 0:02:54.4]} 9...
O-O {[%clk 0:03:01.4]} 10. O-O {[%clk 0:02:53.9]} 10... Be7 {[%clk 0:03:02.1]}
11. a3 {[%clk 0:02:51.3]} 11... Nf6 {[%clk 0:03:02.2]} 12. Bg5 {[%clk
0:02:46.8]} 12... Nd5 {[%clk 0:02:53.1]} 13. Bd2 {[%clk 0:02:32.1]} 13... Nf6
{[%clk 0:02:52.6]} 14. Bf4 {[%clk 0:02:10.3]} 14... b6 {[%clk 0:02:49.1]} 15.
Qe2 {[%clk 0:01:51.9]} 15... Nxd4 {[%clk 0:02:22.7]} 16. Nxd4 {[%clk 0:01:47.2]}
16... Qxd4 {[%clk 0:02:23.6]} 17. Be5 {[%clk 0:01:47]} 17... Qg4 {[%clk
0:02:08.8]} 18. f3 {[%clk 0:01:31.8]} 18... Qh5 {[%clk 0:01:56.1]} 19. g4 {[%clk
0:01:16.3]} 19... Qh3 {[%clk 0:01:13.4]} 20. g5 {[%clk 0:00:51.9]} 20... Nd7
{[%clk 0:00:51.7]} 21. Be4 {[%clk 0:00:36]} 21... Nxe5 {[%clk 0:00:48.5]} 22.
Bxa8 {[%clk 0:00:35.8]} 22... Ng6 {[%clk 0:00:35.1]} 23. f4 {[%clk 0:00:18.2]}
23... Ba6 {[%clk 0:00:34.9]} 24. Qxa6 {[%clk 0:00:11.6]} 24... Rxa8 {[%clk
0:00:34.8]} 25. Qe2 {[%clk 0:00:11.4]} 25... h6 {[%clk 0:00:29.2]} 26. Qf3
{[%clk 0:00:10.2]} 26... Qxf3 {[%clk 0:00:22.3]} 27. Rxf3 {[%clk 0:00:11.1]}
27... hxg5 {[%clk 0:00:23]} 28. fxg5 {[%clk 0:00:11.3]} 28... Bxg5 {[%clk
0:00:23.1]} 29. Rd1 {[%clk 0:00:11.9]} 29... Rc8 {[%clk 0:00:18.7]} 30. Ne4
{[%clk 0:00:09.4]} 30... Be7 {[%clk 0:00:15]} 31. Rg3 {[%clk 0:00:06.6]} 31...
Ne5 {[%clk 0:00:13.5]} 32. Rg2 {[%clk 0:00:05.4]} 32... f5 {[%clk 0:00:11.3]}
33. Nf2 {[%clk 0:00:03.8]} 33... Rc2 {[%clk 0:00:11.1]} 34. Nd3 {[%clk
0:00:03.7]} 34... Nf3+ {[%clk 0:00:10.8]} 35. Kf1 {[%clk 0:00:03.3]} 35... Nxh2+
{[%clk 0:00:10.7]} 36. Kg1 {[%clk 0:00:03.8]} 36... Nf3+ {[%clk 0:00:10.9]} 37.
Kf1 {[%clk 0:00:04.4]} 37... Nh2+ {[%clk 0:00:10.6]} 38. Kg1 {[%clk 0:00:04.3]}
38... Nf3+ {[%clk 0:00:11.2]} 39. Kh1 {[%clk 0:00:05]} 39... Rc4 {[%clk
0:00:11.4]} 40. Nf4 {[%clk 0:00:04.7]} 40... Rxf4 {[%clk 0:00:11]} 41. Rg3
{[%clk 0:00:04.2]} 41... Bf6 {[%clk 0:00:06.2]} 42. Rd6 {[%clk 0:00:03.3]} 42...
Kf7 {[%clk 0:00:05.9]} 43. Rd7+ {[%clk 0:00:03.6]} 43... Ke8 {[%clk 0:00:06.5]}
44. Rxa7 {[%clk 0:00:03.8]} 44... Rh4+ {[%clk 0:00:07.2]} 45. Kg2 {[%clk
0:00:04]} 45... Ng5 {[%clk 0:00:08.1]} 46. Rd3 {[%clk 0:00:03.4]} 46... Ne4
{[%clk 0:00:06.2]} 47. Rd1 {[%clk 0:00:01.9]} 47... Rg4+ {[%clk 0:00:06.6]} 48.
Kf3 {[%clk 0:00:02.6]} 48... Rg3+ {[%clk 0:00:07]} 49. Ke2 {[%clk 0:00:03.1]}
49... g5 {[%clk 0:00:07.5]} 50. Rh1 {[%clk 0:00:02.8]} 50... Rg2+ {[%clk
0:00:06]} 51. Kf1 {[%clk 0:00:03.2]} 51... Rf2+ {[%clk 0:00:05.5]} 52. Ke1
{[%clk 0:00:03.7]} 52... Rxb2 {[%clk 0:00:05.4]} 53. Rhh7 {[%clk 0:00:03.9]}
53... Bc3+ {[%clk 0:00:05.2]} 54. Kd1 {[%clk 0:00:03.6]} 54... Nf2+ {[%clk
0:00:04.6]} 55. Kc1 {[%clk 0:00:04.1]} 55... Nd3+ {[%clk 0:00:05.2]} 56. Kd1
{[%clk 0:00:04.1]} 56... Rd2# {[%clk 0:00:06.1]} 0-1